[Event "CIS Master Groups 2024"]
[Site "Vasto"]
[Date "2024.04.11"]
[Round "6.10"]
[White "Rombaldoni, Denis"]
[Black "Seresin, Francesco"]
[Result "0-1"]
[ECO "D36"]
[WhiteElo "2484"]
[BlackElo "2336"]
[Annotator "TA"]
[PlyCount "80"]
[EventDate "2024.04.07"]
[EventType "team-tourn"]
[EventCountry "ITA"]
[SourceTitle "playchess.com"]
[Source "ChessBase"]
[SourceQuality "1"]
[TimeControl "40/5400+30:900+30"]

{[%evp 18,80,22,24,27,12,14,22,7,11,4,-87,-86,-69,-61,-69,-61,-61,-55,-102,-108,-99,-84,-79,-73,-108,-97,-129,-23,-19,0,-52,-47,-161,-85,-58,-48,-134,-78,-223,-238,-316,-310,-392,-368,-556,-542,-752,-792,-824,-1014,-1031,-1036,-1117,-1112,-975,-1209,-1190,-1135,-1340,-1349,-1007,-516,-1612,-1461]} 1. d4 {[%emt 0:00:03]} d5 {[%emt 0:05:10]} 2. c4 {[%emt 0:00:13]} e6 {[%emt 0:00:40]} 3. Nc3 {[%emt 0:00:06]} Nf6 {[%emt 0:00:12]} 4. cxd5 {[%emt 0:00:18]} exd5 {[%emt 0:01:16]} 5. Bg5 {[%emt 0:00:12]} Be7 {[%emt 0:01:11]} 6. e3 {[%emt 0:02:03]} c6 {[%emt 0:01:26]} 7. Qc2 {[%emt 0:01:43]} h6 {[%emt 0:01:22]} 8. Bh4 {[%emt 0:00:35]} O-O {[%emt 0:00:16]} 9. Bd3 {[%emt 0:00:23]} Re8 {[%emt 0:00:12]} 10. Nge2 {[%emt 0:03:09]} a5 {[%emt 0:01:25]} 11. f3 {[%emt 0:04:44]} Na6 {[%emt 0:04:37]} 12. a3 {[%emt 0:06:40] Wards off Nb4} Nc7 {[%emt 0:00:35] The position is equal.} 13. O-O {[%emt 0:00:26]} c5 {[%emt 0:00:51]} 14. Rad1 {[%emt 0:11:49]} (14. dxc5 $11 Bxc5 15. Nd1) 14... c4 $17 {[%emt 0:03:56]} 15. Bf5 {[%emt 0:00:11]} b5 {[%emt 0:00:18]} 16. Bxc8 {[%emt 0:16:28]} Rxc8 {[%emt 0:05:07]} 17. e4 {[%emt 0:00:05]} b4 {[%emt 0:12:31]} 18. Bxf6 {[%emt 0:00:10]} (18. Na4 $15) 18... Bxf6 {[%emt 0:00:31]} 19. Na4 {[%emt 0:00:45]} bxa3 {[%emt 0:07:19]} 20. bxa3 {[%emt 0:00:22]} Nb5 {[%emt 0:02:18]} 21. e5 {[%emt 0:05:47]} Be7 {[%emt 0:00:41][%cal Oc8b8]} 22. Nac3 {[%emt 0:01:10] [#]} Rb8 {[%emt 0:12:23]} ({Resist} 22... Nxa3 23. Qa4 $11) (22... Nxc3 $1 $17 23. Qxc3 Rb8) 23. a4 {[%emt 0:04:09]} Nc7 {[%emt 0:00:56]} 24. Nf4 {[%emt 0:06:49]} (24. f4 $11) 24... Qd7 $15 {[%emt 0:02:46]} 25. Nh5 {[%emt 0:11:14] [#]} ({Better is} 25. Nfe2 $15) 25... Ba3 {[%emt 0:05:42]} (25... Rb3 $1 $19 26. f4 Reb8) 26. Qf2 $17 {[%emt 0:03:28] Threatens to win with Qg3.} Qf5 {[%emt 0:04:52]} 27. g4 {[%emt 0:01:25]} (27. Ng3 $1 $15 Qc8 28. Nce2) 27... Qd7 {[%emt 0:01:28]} ({Black should try} 27... Qe6 28. Nf4 Qd7) 28. Ne2 {[%emt 0:04:12] Now White is beyond hope.} (28. Qg3 $17) 28... Rb2 $19 {[%emt 0:02:56][%cal Oe8b8]} (28... Qxa4 29. Ra1) 29. Qe3 {[%emt 0:00:49]} Be7 {[%emt 0:02:16][%cal Oe8b8]} 30. Rf2 {[%emt 0:10:45]} Reb8 {[%emt 0:03:15]} ({But not} 30... Qxa4 31. Nc3 Qb4 32. Qe1 $19) 31. Ra1 {[%emt 0:03:02]} (31. Nc3 {was worth a try.}) 31... R8b3 {[%emt 0:02:25] Black is clearly winning.} 32. Qc1 {[%emt 0:00:44]} Bg5 {[%emt 0:01:58]} 33. Nef4 {[%emt 0:01:25]} Rxf2 {[%emt 0:02:20]} 34. Kxf2 {[%emt 0:00:01]} Ne6 {[%emt 0:00:34]} 35. Kg2 {[%emt 0:00:01]} Qa7 {[%emt 0:02:45]} 36. h4 {[%emt 0:02:14]} Bxf4 {[%emt 0:01:00]} 37. Nxf4 {[%emt 0:00:05]} Qxd4 {[%emt 0:00:42]} 38. Nxe6 {[%emt 0:00:37]} Rb2+ {[%emt 0:01:50]} 39. Kh3 {[%emt 0:00:06]} Qf2 {[%emt 0:02:06]} 40. Qh1 {[%emt 0:00:07]} (40. Qg1 $142 Qxf3+ (40... fxe6 $2 41. Qxf2 Rxf2 42. Kg3 $19) 41. Qg3 Qxg3+ 42. Kxg3 fxe6 43. Kf3) 40... fxe6 {[%emt 0:00:08] Weighted Error Value: White=0.75/Black=0.41.  Mistake:       	White=7     	Black=3      Inaccurate:     	White=4     	---        OK:         	White=7     	Black=10     Best:        	---       	Black=2} 0-1

[Event "CIS Master Groups 2024"]
[Site "Vasto"]
[Date "2024.04.11"]
[Round "6.11"]
[White "Boraso, Alessio"]
[Black "Garcia Palermo, Carlos Horacio"]
[Result "1/2-1/2"]
[ECO "B13"]
[WhiteElo "2291"]
[BlackElo "2407"]
[Annotator "TA"]
[PlyCount "25"]
[EventDate "2024.04.07"]
[EventType "team-tourn"]
[EventCountry "ITA"]
[SourceTitle "playchess.com"]
[Source "ChessBase"]
[SourceQuality "1"]
[TimeControl "40/5400+30:900+30"]

{[%evp 11,25,5,15,4,10,0,0,6,0,0,12,-31,-44,-52,-37,-39]} 1. e4 {[%emt 0:03:38]} c6 {[%emt 0:00:05]} 2. d4 {[%emt 0:00:23]} d5 {[%emt 0:00:06]} 3. exd5 {[%emt 0:00:10]} cxd5 {[%emt 0:00:04]} 4. c4 {[%emt 0:00:05]} Nf6 {[%emt 0:00:10]} 5. Nc3 {[%emt 0:00:05]} Nc6 {[%emt 0:08:22]} 6. Nf3 {[%emt 0:01:08]} a6 {[%emt 0:00:08]} 7. Bg5 {[%emt 0:21:21]} Be6 {[%emt 0:00:42]} 8. Be2 {[%emt 0:02:22]} g6 {[%emt 0:02:35]} 9. Bxf6 {[%emt 0:08:56] The position is equal.} exf6 {[%emt 0:00:07]} 10. O-O {[%emt 0:04:11]} Bg7 {[%emt 0:00:28]} 11. cxd5 {[%emt 0:03:46]} Bxd5 {[%emt 0:00:08]} 12. Rc1 {[%emt 0:00:36]} O-O {[%emt 0:00:27]} 13. Nxd5 {[%emt 0:01:07] Weighted Error Value: White=0.12 (very precise) /Black=0.02 (flawless) .  Inaccurate:     	White=1     	---        OK:         	White=3     	Black=3      Best:        	---       	Black=1} 1/2-1/2

[Event "CIS Master Groups 2024"]
[Site "Vasto"]
[Date "2024.04.11"]
[Round "6.12"]
[White "Loiacono, Antonio"]
[Black "Lanzani, Mario Lorenzo"]
[Result "1-0"]
[ECO "B60"]
[WhiteElo "2292"]
[BlackElo "2259"]
[Annotator "TA"]
[PlyCount "157"]
[EventDate "2024.04.07"]
[EventType "team-tourn"]
[EventCountry "ITA"]
[SourceTitle "playchess.com"]
[Source "ChessBase"]
[SourceQuality "1"]
[TimeControl "40/5400+30:900+30"]

{[%evp 56,157,-93,-78,-85,-82,-88,-138,-166,-158,0,0,0,0,24,0,0,0,51,0,74,73,66,67,224,52,209,237,237,237,241,230,253,204,177,204,201,201,219,159,159,159,185,41,598,658,658,570,527,477,1842,1744,1757,1346,1190,1045,29936,12849,29972,29973,29973,29971,29971,29972,29968,8,8,8,8,8,8,8,8,8,8,8,29960,29962,29944,5409,29968,29968,29968,29969,29967,29967,29955,8,22,0,29958,32,45,51,29965,29966,12136,9205,29971,29973,29977,29977,29978,29969]} 1. e4 {[%emt 0:00:02]} c5 {[%emt 0:00:46]} 2. Nf3 {[%emt 0:00:05]} d6 {[%emt 0:00:16]} 3. d4 {[%emt 0:00:10]} cxd4 {[%emt 0:00:08]} 4. Nxd4 {[%emt 0:00:06]} Nf6 {[%emt 0:00:18]} 5. Nc3 {[%emt 0:00:19]} Nc6 {[%emt 0:00:16]} 6. Bg5 {[%emt 0:00:25]} Bd7 {[%emt 0:00:31]} 7. Nb3 {[%emt 0:04:31]} e6 {[%emt 0:03:37] B60: Sicilian: Richter-Rauzer: Unusual Black 6th moves and 6...Bd7 without 7 Qd2.} 8. Be2 {[%emt 0:06:40]} a6 {[%emt 0:01:08]} 9. O-O {[%emt 0:00:46]} Qc7 {[%emt 0:03:26]} 10. a4 {[%emt 0:04:34]} b6 {[%emt 0:01:06]} 11. Be3 {[%emt 0:09:16]} Be7 {[%emt 0:03:23]} 12. f4 {[%emt 0:04:27]} Bc8 {[%emt 0:01:22]} 13. Bf3 {[%emt 0:04:52]} Bb7 {[%emt 0:00:44]} 14. Qe1 {[%emt 0:04:01]} O-O {[%emt 0:01:43]} 15. g4 {[%emt 0:03:19]} d5 $146 {[%emt 0:06:23]} ({Predecessor:} 15... Nd7 16. g5 Rfe8 17. Bg2 Nb4 18. Qf2 Bf8 19. Rad1 Rad8 20. Rd2 Nc5 21. Rfd1 Bc6 22. Nd4 Bd7 23. Nde2 Ra8 24. Ra1 Bc6 25. Nd4 Bd7 26. Nde2 Bc6 {½-½ Findlay,I (2304)-Moffat,A (2125) Toronto Hart House Holidays op 2016 (1)}) 16. e5 {[%emt 0:13:21]} Nd7 {[%emt 0:02:38]} 17. g5 {[%emt 0:02:54]} Na5 {[%emt 0:05:03]} 18. Nxa5 {[%emt 0:04:42]} bxa5 {[%emt 0:00:23]} 19. Qf2 {[%emt 0:01:43]} Rac8 {[%emt 0:02:20]} 20. Rac1 {[%emt 0:02:53]} Qc4 {[%emt 0:02:10]} 21. Rfd1 {[%emt 0:05:06]} Qb4 {[%emt 0:06:12]} 22. Rb1 {[%emt 0:00:23]} Bc5 {[%emt 0:02:48]} 23. Be2 {[%emt 0:05:19]} d4 {[%emt 0:08:54]} 24. Bxd4 {[%emt 0:01:31]} Qb6 {[%emt 0:02:16]} 25. Bxc5 {[%emt 0:02:50]} Nxc5 {[%emt 0:00:51]} 26. Bf1 {[%emt 0:04:01]} f6 {[%emt 0:05:24]} 27. Rd6 {[%emt 0:05:38]} Qc7 {[%emt 0:01:37]} 28. Qd2 {[%emt 0:00:35]} fxe5 {[%emt 0:04:35]} 29. fxe5 {[%emt 0:00:19]} Rf5 {[%emt 0:00:33]} 30. Rd1 {[%emt 0:02:48]} Rcf8 {[%emt 0:01:46]} 31. Bg2 {[%emt 0:02:31]} (31. Bh3 $142 Rf2 (31... Rxe5 $2 32. Rd8 $19) 32. Qxf2 Rxf2 33. Kxf2 Qf7+ 34. Kg1) 31... Bxg2 $17 {[%emt 0:01:42]} (31... Rxe5 32. Rd8 Bxg2 33. Rxf8+ Kxf8 34. Qxg2 $17) 32. Qxg2 {[%emt 0:00:04]} Qf7 $2 {[%emt 0:00:44]} (32... Qa7 $17 {( -> ...Nd3+)} 33. R6d4 Nd7 (33... Rxe5 34. Kh1 $17)) 33. Rd8 $11 {[%emt 0:01:49]} Qg6 {[%emt 0:06:09]} 34. h4 {[%emt 0:00:48]} Qh5 {[%emt 0:01:42]} 35. Rxf8+ {[%emt 0:01:18]} Rxf8 {[%emt 0:01:10]} 36. Rd4 {[%emt 0:00:03]} h6 {[%emt 0:02:52]} (36... Qf7 $1 $11) 37. Rg4 {[%emt 0:01:33]} (37. Ne2 $14) 37... Qg6 {[%emt 0:06:01]} (37... Nd7 $11 38. gxh6 Qxh6) 38. Ne2 $16 {[%emt 0:02:00]} hxg5 {[%emt 0:02:35]} 39. Rxg5 {[%emt 0:00:11]} Qxc2 $2 {[%emt 0:03:58]} ({Black should play} 39... Qf7 $1 $14) 40. Rxg7+ $18 {[%emt 0:00:16]} Kh8 {[%emt 0:00:12]} 41. Rg5 {[%emt 0:15:59]} Qb1+ {[%emt 0:21:05]} 42. Kh2 {[%emt 0:00:09]} Qh7 {[%emt 0:00:17]} 43. Qg4 $1 {[%emt 0:00:00]} Rg8 {[%emt 0:00:00]} 44. Nf4 {[%emt 0:00:00]} Rxg5 {[%emt 0:00:00]} 45. Qxg5 {[%emt 0:00:00]} Qc2+ {[%emt 0:00:00]} 46. Ng2 $1 {[%emt 0:00:00]} Qf2 {[%emt 0:00:00]} 47. h5 {[%emt 0:00:00]} Qf7 {[%emt 0:01:50]} 48. Nf4 {[%emt 0:00:00]} Kh7 {[%emt 0:00:08]} 49. Qg4 {[%emt 0:03:08]} (49. Nh3 $1 $18) 49... Qg7 $2 {[%emt 0:01:49][%mdl 8192]} (49... Kh6 $1 $14) 50. Qxg7+ $18 {[%emt 0:01:36]} Kxg7 {[%emt 0:00:06]} 51. b3 {[%emt 0:00:02]} Kh6 {[%emt 0:04:20]} 52. Kg3 {[%emt 0:00:35]} Nxb3 {[%emt 0:00:29]} (52... Kg5 $142 53. Kf3 Kf5) 53. Nxe6 $18 {[%emt 0:00:21]} Kxh5 {[%emt 0:00:03]} 54. Kf4 {[%emt 0:00:17]} Kg6 {[%emt 0:00:27]} 55. Ke4 $1 {[%emt 0:00:09]} Kf7 {[%emt 0:01:04]} 56. Kd5 {[%emt 0:00:05]} Nc1 {[%emt 0:00:58]} 57. Kd6 {[%emt 0:01:47]} Ne2 {[%emt 0:00:52]} 58. Kd7 {[%emt 0:00:56]} Nc3 {[%emt 0:00:29]} 59. Nc5 {[%emt 0:00:46]} Nd5 {[%emt 0:00:21]} 60. Kd6 $2 {[%emt 0:00:53]} (60. Nxa6 Nb6+ 61. Kd6 Nc4+ 62. Kd5 Nb6+ 63. Kd6 Nc4+ 64. Kd5 Nb6+ 65. Kd6 $11) (60. e6+ $1 Kf6 61. Kd6 (61. Nxa6 Nb6+ 62. Kc7 Nxa4 $11) 61... Ne3 62. Ne4+ (62. Nxa6 Nc4+ 63. Kc5 Nb2 $11) 62... Kf5 63. e7 Kxe4 64. e8=Q+ (64. e8=R+ Kd4 $16) 64... Kd4 65. Qh8+ Kd3 66. Kc5) 60... Nb6 $1 $11 {[%emt 0:00:33]} 61. e6+ {[%emt 0:00:21]} (61. Nd7 $5 Nc4+ $8 62. Kd5 $11) 61... Ke8 {[%emt 0:00:11]} 62. Kc6 {[%emt 0:00:25]} (62. Nd7 $5 Nc4+ $8 63. Kc5 $11) 62... Nc4 {[%emt 0:00:26]} 63. Nxa6 {[%emt 0:00:28]} Ke7 {[%emt 0:00:32]} 64. Nc5 {[%emt 0:00:04]} Nb2 {[%emt 0:00:31]} 65. Kd5 {[%emt 0:00:17]} Ke8 $2 {[%emt 0:00:27][%mdl 8192]} (65... Nd1 $11) 66. Kd6 {[%emt 0:01:07]} Nc4+ {[%emt 0:00:09]} 67. Kc6 $1 {[%emt 0:00:03]} Ke7 {[%emt 0:00:57]} 68. Kb5 {[%emt 0:00:08]} Na3+ {[%emt 0:00:24]} 69. Kxa5 {[%emt 0:00:12]} Kd6 {[%emt 0:00:10]} 70. Kb4 {[%emt 0:00:38]} Nc2+ {[%emt 0:00:08] [#]} 71. Kb5 $2 {[%emt 0:00:18]} (71. Kc4 $1 Ne3+ 72. Kb5 Kc7 73. e7 Nf5 74. e8=N+ (74. e8=R Nd6+ 75. Ka5 Nxe8 $11) 74... Kd8 75. a5 (75. Nf6 Kc7 $18) 75... Kxe8 76. a6 Nd6+ 77. Kc6) 71... Na3+ $11 {[%emt 0:00:13]} 72. Kb4 $2 {[%emt 0:00:22][%mdl 8192]} (72. Ka6 $11 Nc4 73. Kb5 Na3+ 74. Kb4 Nc2+ 75. Kc4) 72... Nc2+ {[%emt 0:00:10] [#]} 73. Kc3 $2 {[%emt 0:00:28]} (73. Kc4 $1 {mates} Ne3+ 74. Kb5 Nd5 75. a5 Ne7 76. Kb6 Nd5+ 77. Kb7 (77. Kb5 Ne7 $18) 77... Kxc5 78. a6) 73... Ne3 $1 $14 {[%emt 0:00:16]} 74. Kd4 {[%emt 0:00:40]} (74. Kb3 $5 Nd5 $8 75. Kc4 $11) 74... Nf5+ $2 {[%emt 0:01:06][%mdl 8192]} (74... Nd5 $14) 75. Kc4 {[%emt 0:00:41]} Kc6 {[%emt 0:00:10]} 76. Ne4 {[%emt 0:00:34]} Kb6 {[%emt 0:00:56]} 77. Kd5 {[%emt 0:00:43]} Ka5 {[%emt 0:00:19]} 78. Nc3 {[%emt 0:00:30]} Kb4 {[%emt 0:01:11]} 79. Ke4 {[%emt 0:02:09]} 1-0

[Event "CIS Master Groups 2024"]
[Site "Vasto"]
[Date "2024.04.11"]
[Round "6.13"]
[White "Altini, Nicola"]
[Black "Ceres, Dragos"]
[Result "1/2-1/2"]
[ECO "D32"]
[WhiteElo "2393"]
[BlackElo "2486"]
[Annotator "TA"]
[PlyCount "107"]
[EventDate "2024.04.07"]
[EventType "team-tourn"]
[EventCountry "ITA"]
[SourceTitle "playchess.com"]
[Source "ChessBase"]
[SourceQuality "1"]
[TimeControl "40/5400+30:900+30"]

{[%evp 13,107,43,44,37,42,50,47,27,41,25,20,22,19,16,21,29,40,43,39,13,49,43,54,46,65,67,68,75,81,76,80,74,82,88,83,82,113,110,122,110,112,110,112,53,53,53,51,49,47,51,43,49,53,55,69,64,67,70,70,79,78,0,72,58,77,52,75,0,68,0,29,29,33,0,40,12,10,8,55,61,58,27,31,21,82,57,47,47,84,41,40,0,86,0,40,0]} 1. d4 {[%emt 0:00:01]} d5 {[%emt 0:00:06]} 2. c4 {[%emt 0:00:02]} e6 {[%emt 0:00:06]} 3. Nf3 {[%emt 0:00:02]} c5 {[%emt 0:00:07]} 4. cxd5 {[%emt 0:00:06]} exd5 {[%emt 0:00:06]} 5. Nc3 {[%emt 0:00:02]} Nf6 {[%emt 0:00:12]} 6. Bg5 {[%emt 0:00:02]} Be6 {[%emt 0:00:12]} 7. Bxf6 {[%emt 0:00:35]} Qxf6 {[%emt 0:00:09]} 8. e4 {[%emt 0:00:04]} dxe4 {[%emt 0:00:22]} 9. Bb5+ {[%emt 0:00:20]} Nc6 {[%emt 0:02:00]} 10. Nxe4 {[%emt 0:24:07]} Qf4 {[%emt 0:00:08]} 11. Qe2 {[%emt 0:02:56]} Be7 {[%emt 0:00:18]} 12. O-O {[%emt 0:07:08]} O-O {[%emt 0:00:15]} 13. Nxc5 {[%emt 0:11:07] A dynamic duo of knights.} (13. dxc5 {keeps more tension.} Bd5 14. Rfe1 Rad8 15. Qe3) 13... Nxd4 {[%emt 0:00:16]} 14. Nxd4 {[%emt 0:00:03]} Bxc5 {[%emt 0:00:12]} 15. Nxe6 {[%emt 0:00:18]} fxe6 {[%emt 0:00:04]} 16. Rac1 {[%emt 0:27:37][%cal Ba1c1,Bc1c4,Bc4e4,Be4e6][%mdl 32]} b6 {[%emt 0:04:18]} 17. Rc4 {[%emt 0:08:01]} ({Don't take} 17. Qxe6+ Kh8 $16) 17... Qf6 {[%emt 0:04:31]} 18. Re4 {[%emt 0:03:07]} Rad8 {[%emt 0:01:19]} 19. b4 {[%emt 0:03:14]} Bd4 {[%emt 0:05:58]} 20. Rxe6 {[%emt 0:03:00]} Qg5 {[%emt 0:00:08][%cal Of8f2]} 21. Bc4 {[%emt 0:05:17][%cal Bb5c4,Bc4d5,Bd5b7][%mdl 32]} Kh8 {[%emt 0:03:11][%cal Of8f2]} 22. Kh1 {[%emt 0:01:30]} g6 {[%emt 0:10:00]} 23. g3 {[%emt 0:00:20]} Qf5 {[%emt 0:07:48]} 24. f4 {[%emt 0:00:20]} Rf6 {[%emt 0:01:33]} 25. Re7 {[%emt 0:01:07]} Qc8 {[%emt 0:02:18] [#]} 26. Bd5 $1 {[%emt 0:00:45][%cal Of1d1][%mdl 512] And now Rd1! would win. Black is weak on the light squares} Rfd6 {[%emt 0:01:18]} 27. Bb7 {[%emt 0:00:45] White has more active pieces.} Qb8 {[%emt 0:02:58]} 28. Re1 {[%emt 0:00:35]} (28. f5 $16 {fxg6 is the strong threat.} R6d7 29. Rxd7 Rxd7 30. Be4 gxf5 31. Rxf5 (31. Bxf5 Rf7 $16)) 28... Bf6 $14 {[%emt 0:03:03]} 29. Re8+ {[%emt 0:01:11]} Kg7 {[%emt 0:00:49]} 30. Bf3 $1 {[%emt 0:00:24]} Rxe8 {[%emt 0:02:21]} 31. Qxe8 {[%emt 0:00:01]} Qxe8 {[%emt 0:00:14]} 32. Rxe8 {[%emt 0:00:02][%mdl 4096] Endgame. KRB-KRB} Rd2 {[%emt 0:01:43]} 33. a4 {[%emt 0:00:27]} Rd4 {[%emt 0:01:29]} 34. Ra8 {[%emt 0:00:07]} Rxb4 {[%emt 0:00:11]} 35. Rxa7+ {[%emt 0:00:00]} Kh8 {[%emt 0:00:35]} 36. Ra8+ {[%emt 0:00:06]} Kg7 {[%emt 0:00:04]} 37. Ra7+ {[%emt 0:00:01]} Kh8 $1 {[%emt 0:00:06]} 38. Bd5 {[%emt 0:00:38]} Bd4 {[%emt 0:03:17]} 39. Ra8+ {[%emt 0:00:38]} Kg7 {[%emt 0:00:06]} 40. Ra7+ {[%emt 0:00:05]} Kh8 $1 {[%emt 0:00:20]} 41. g4 {[%emt 0:09:03]} (41. h4 $14) 41... h6 {[%emt 0:03:38]} 42. Ra8+ {[%emt 0:02:44]} Kg7 {[%emt 0:00:21]} 43. Ra7+ {[%emt 0:00:01]} Kh8 $1 {[%emt 0:00:10]} 44. f5 {[%emt 0:05:01]} gxf5 {[%emt 0:01:07]} 45. gxf5 {[%emt 0:00:00]} Rb1+ {[%emt 0:00:45]} (45... b5 $11 46. Ra8+ Kg7) 46. Kg2 {[%emt 0:00:04]} Rb2+ {[%emt 0:00:06]} 47. Kf3 {[%emt 0:00:59]} Rxh2 {[%emt 0:00:16]} 48. Rd7 {[%emt 0:00:45]} Rf2+ {[%emt 0:07:02]} (48... h5 $11) 49. Kg4 {[%emt 0:01:08]} Be3 {[%emt 0:01:34]} 50. Be6 {[%emt 0:00:52]} Bc1 {[%emt 0:13:32]} 51. Rb7 {[%emt 0:00:41]} Be3 {[%emt 0:01:19]} 52. Rd7 {[%emt 0:00:06]} (52. Rf7 $14 {should be considered.}) 52... Bc1 $16 {[%emt 0:00:04] [#]} 53. Rb7 {[%emt 0:01:31]} (53. Rf7 $1 $16) 53... Be3 $1 $14 {[%emt 0:00:32]} 54. Rd7 {[%emt 0:01:07] Weighted Error Value: White=0.14 (very precise) /Black=0.09 (flawless) .  Mistake:       	White=4     	Black=2      Inaccurate:     	White=5     	Black=4      OK:         	White=18    	Black=19     Best:        	---       	Black=5      Strong:       	White=1     	Black=4} 1/2-1/2

[Event "CIS Master Groups 2024"]
[Site "Vasto"]
[Date "2024.04.11"]
[Round "6.14"]
[White "Lumachi, Gabriele"]
[Black "Collutiis, Duilio"]
[Result "1-0"]
[ECO "A57"]
[WhiteElo "2413"]
[BlackElo "2334"]
[Annotator "TA"]
[PlyCount "59"]
[EventDate "2024.04.07"]
[EventType "team-tourn"]
[EventCountry "ITA"]
[SourceTitle "playchess.com"]
[Source "ChessBase"]
[SourceQuality "1"]
[TimeControl "40/5400+30:900+30"]

{[%evp 15,59,35,17,22,43,42,31,47,32,29,40,26,115,118,112,106,93,0,140,137,147,179,137,116,112,-45,-50,-55,152,154,146,133,168,84,301,125,318,339,647,629,2488,2405,2415,2347,2044,1977]} 1. d4 {[%emt 0:00:04]} Nf6 {[%emt 0:00:45]} 2. c4 {[%emt 0:00:07]} c5 {[%emt 0:00:02]} 3. d5 {[%emt 0:00:08]} b5 {[%emt 0:00:03]} 4. cxb5 {[%emt 0:00:06]} a6 {[%emt 0:00:03]} 5. e3 {[%emt 0:00:08]} Bb7 {[%emt 0:00:04]} 6. Nc3 {[%emt 0:01:15]} Qa5 {[%emt 0:00:56]} 7. Bd2 {[%emt 0:09:01]} axb5 {[%emt 0:00:17]} 8. Bxb5 {[%emt 0:00:08]} Qb6 $1 {[%emt 0:00:03]} 9. a4 {[%emt 0:00:12] And now e4 would win.} Nxd5 {[%emt 0:00:45]} 10. Nf3 {[%emt 0:00:20]} e6 {[%emt 0:01:24][%cal Be7e6,Be6d5][%mdl 32]} 11. O-O {[%emt 0:00:12] White is slightly better.} Be7 {[%emt 0:06:14]} 12. e4 {[%emt 0:00:06][%cal Be3e4,Be4e5][%mdl 32]} Nf6 {[%emt 0:09:18]} 13. Qe2 {[%emt 0:30:00][%cal Oa4a5]} Nc6 {[%emt 0:16:04]} (13... O-O $11) 14. e5 $16 {[%emt 0:00:25]} Nd5 {[%emt 0:00:03]} 15. Nxd5 {[%emt 0:01:30]} exd5 {[%emt 0:00:09]} 16. Rfe1 {[%emt 0:02:42]} ({White should try} 16. a5 $1 $16 {[%cal Ra5b6]} Qa7 (16... Nxa5 $2 17. e6 $18) 17. b4) 16... h6 {[%emt 0:17:48] [#]} (16... O-O $11 {keeps the balance.}) 17. a5 $1 {[%emt 0:09:37][%mdl 512]} Qc7 {[%emt 0:04:26]} (17... Qa7 18. a6) 18. a6 {[%emt 0:06:15]} Bc8 {[%emt 0:00:08]} 19. Ra4 {[%emt 0:00:39]} Qb6 {[%emt 0:06:09]} 20. Rg4 {[%emt 0:09:46]} (20. b3 $1 $16) 20... Bxa6 $15 {[%emt 0:06:53]} 21. Ra1 {[%emt 0:01:02][%cal Ra1a6]} c4 $2 {[%emt 0:01:26]} (21... Nb8 $15 {keeps the upper hand.} 22. Bxa6 (22. Rxg7 $2 Bxb5 23. Qe1 Rxa1 $19) 22... Rxa6 23. Rxa6 Qxa6 24. Qxa6 Nxa6) 22. Bxc6 $1 $16 {[%emt 0:02:01]} (22. Rxg7 $2 Qxb5 23. Be3 Bc5 $19) 22... Qxc6 {[%emt 0:03:16] [#]} 23. Nd4 $1 $36 {[%emt 0:00:44][%cal Bf3d4,Bd4f5,Bf5d6][%mdl 2080] White is on the roll. White has more active pieces.} (23. Rxg7 $2 c3 24. Qe3 cxd2 $19 (24... cxb2 $2 25. Re1 $17)) 23... Qb6 {[%emt 0:00:16]} 24. Bc3 {[%emt 0:02:33]} (24. Nf5 $18) 24... Bc5 $2 {[%emt 0:06:27] [#]} (24... g6 $16 {was worth a try.}) 25. Qf3 {[%emt 0:02:11]} (25. Nf5 $1 $18 {[%cal Rf5d6] Strongly threatening Nd6+.} Rg8 26. Qf3 (26. Rxg7 Rxg7 27. Nxg7+ Kf8 $16) (26. Nxg7+ Rxg7 27. Rxg7 O-O-O $18)) 25... g5 $2 {[%emt 0:05:12]} (25... g6 $16) 26. Nf5 $18 {[%emt 0:02:51]} (26. Qxd5 O-O 27. e6 (27. Qxd7 $2 Bb5 $19) 27... fxe6 $14 (27... dxe6 28. Rxg5+ Kh7 29. Nxe6 Bxf2+ 30. Kh1 Qxe6 31. Rg7+ Kh8 32. Rxf7+ Kg8 33. Rg7+ Kh8 34. Qxe6)) 26... Rg8 $2 {[%emt 0:09:50] [#]} (26... Qc6 27. Nd6+ (27. Ng7+ Kd8 $16) 27... Bxd6) 27. Rxc4 $3 {[%emt 0:11:22][%mdl 512] White is clearly winning.} Rc8 {[%emt 0:03:39] [#]} (27... Rg6 28. Qxd5) 28. Rxc5 {[%emt 0:00:43][%mdl 512]} Rxc5 {[%emt 0:00:35]} 29. Nd6+ {[%emt 0:00:34]} Kd8 {[%emt 0:00:08]} 30. Qxf7 {[%emt 0:00:21] Weighted Error Value: White=0.28 (precise) /Black=0.86.  Loses game:     	---       	Black=2      Missed win:     	White=1     	---        Mistake:       	White=3     	Black=4      Inaccurate:     	---       	Black=1      OK:         	White=5     	Black=5      Best:        	White=3     	Black=2      Strong:       	White=2     	---        Brilliant:      	White=1     	---} (30. Nxf7+ Kc7 31. e6 dxe6 32. Be5+ (32. Nxh6 Rc8 $18) 32... Kd7) 1-0